Workbook

Sheet Лист1
A1: Школа | C1: МОБУ СОШ им.К.Иванова с. Базлык | F1: Утвердил: | G1: должность | H1: Директор школы
A2: Типовое примерное меню приготавливаемых блюд | G2: фамилия | H2: Афанасьева Л.Н.
A3: Возрастная категория | E3: от 7 до 11 лет | G3: дата | H3: 2026-01-12
A5: Неделя | B5: День недели | C5: Прием пищи | D5: Раздел меню | E5: Блюда | F5: Вес блюда, г | G5: Белки | H5: Жиры | I5: Углеводы | J5: Калорийность | K5: № рецептуры | L5: Цена
A6: 1 | B6: 1 | C6: Завтрак | D6: закуска | E6: морковь с сахаром | F6: 80 | G6: 0.67 | H6: 0.00 | I6: 6.14 | J6: 29.30 | K6: 4 | L6: 13.89
D7: гор.блюдо | E7: Плов из мяса птицы | F7: 180 | G7: 15.2 | H7: 16.7 | I7: 37.3 | J7: 359.2 | K7: 131 | L7: 55.26
D8: гор.напиток | E8: Чай сахаром | F8: 200 | G8: 0.20 | H8: 0 | I8: 9.1 | J8: 36.0 | K8: 274 | L8: 2.92
D9: хлеб | E9: Хлеб пшеничный для детского питания | F9: 40 | G9: 3.00 | H9: 0.40 | I9: 22.00 | J9: 98.40 | K9: 1 | L9: 4.89
D13: итого | F13: =SUM(F6:F12) -> 500 | G13: =SUM(G6:G12) -> 19.07 | H13: =SUM(H6:H12) -> 17.1 | I13: =SUM(I6:I12) -> 74.5 | J13: =SUM(J6:J12) -> 522.90 | L13: =SUM(L6:L12) -> 76.96
A25: 1 | B25: 2 | C25: Завтрак | D25: гор.блюдо | E25: Каша манная молочная жидкая | F25: 200 | G25: 6.12 | H25: 8.23 | I25: 30.34 | J25: 200 | K25: 205 | L25: 38.72
D27: гор.напиток | E27: какао с молоком | F27: 200 | G27: 3.60 | H27: 3.30 | I27: 13.70 | J27: 98.00 | K27: 306 | L27: 11.34
D28: хлеб | E28: Хлеб пшеничный для детского питания | F28: 50 | G28: 3.75 | H28: 0.5 | I28: 27.5 | J28: 123.0 | K28: 1 | L28: 5.12
D29: сладкий | E29: Йогурт для детского питания | F29: 100 | G29: 3.2 | H29: 3.0 | I29: 9.2 | J29: 80.0 | L29: 21.78
D32: итого | F32: =SUM(F25:F31) -> 550 | G32: =SUM(G25:G31) -> 16.67 | H32: =SUM(H25:H31) -> 15.03 | I32: =SUM(I25:I31) -> 80.74 | J32: =SUM(J25:J31) -> 501.00 | L32: 76.96
A44: 1 | B44: 3 | C44: Завтрак | D44: гор.блюдо | E44: Сложный гарнир: макаронные изделия отварные с котлетом припущенные из мяса птицы с томатным соусом | F44: 270 | G44: 16.51 | H44: 16.6 | I44: 48.1 | J44: 415.6 | K44: 209 | L44: 70.22
D46: гор.напиток | E46: Чай с сахаром | F46: 200 | G46: 0.2 | H46: 0 | I46: 9.1 | J46: 36.0 | K46: 274 | L46: 2.92
D47: хлеб | E47: Хлеб пшеничный для детского питания | F47: 30 | G47: 2.25 | H47: 0.3 | I47: 16.5 | J47: 73.8 | K47: 1 | L47: 3.82
D51: итого | F51: =SUM(F44:F50) -> 500 | G51: =SUM(G44:G50) -> 18.96 | H51: =SUM(H44:H50) -> 16.9 | I51: =SUM(I44:I50) -> 73.70 | J51: =SUM(J44:J50) -> 525.40 | L51: =SUM(L44:L50) -> 76.96
A63: 1 | B63: 4 | C63: Завтрак | D63: закуска | E63: Салат из белокочанной капусты | F63: 60 | G63: 1.3 | H63: 2.7 | I63: 6.2 | J63: 57 | K63: 6 | L63: 7.35
D64: гор.блюдо | E64: Картофельное пюре рыбные тефтели с томатным соусом | F64: 300 | G64: 12.8 | H64: 14.7 | I64: 37.9 | J64: 344 | K64: 87 | L64: 62.87
D65: гор.напиток | E65: Чай с сахаром | F65: 200 | G65: 0.2 | H65: 0 | I65: 9.1 | J65: 36.0 | K65: 300 | L65: 2.92
D66: хлеб | E66: Хлеб пшеничный для детского питания | F66: 30 | G66: 2.25 | H66: 0.3 | I66: 16.5 | J66: 73.8 | K66: 1 | L66: 3.82
D70: итого | F70: =SUM(F63:F69) -> 590 | G70: =SUM(G63:G69) -> 16.55 | H70: =SUM(H63:H69) -> 17.70 | I70: =SUM(I63:I69) -> 69.70 | J70: =SUM(J63:J69) -> 510.8 | L70: =SUM(L63:L69) -> 76.96
A82: 1 | B82: 5 | C82: Завтрак | D82: гор.блюдо | E82: Каша рисовая молочная жидкая | F82: 200 | G82: 5.2 | H82: 7.2 | I82: 35.2 | J82: 229 | K82: 207 | L82: 30.56
D84: гор.напиток | E84: Чай с лимоном и сахаром | F84: 200 | G84: 0.2 | H84: 0 | I84: 9.3 | J84: 38.0 | K84: 302 | L84: 4.89
D85: хлеб | E85: Бутерброд с сыром | F85: 55 | G85: 7.58 | H85: 5.14 | I85: 17.85 | J85: 152 | K85: 3 | L85: 19.86
D86: сладкий | E86: Йогурт для детского питания | F86: 100 | G86: 3.2 | H86: 3.0 | I86: 9.2 | J86: 80 | L86: 21.65
D89: итого | F89: =SUM(F82:F88) -> 555 | G89: =SUM(G82:G88) -> 16.2 | H89: =SUM(H82:H88) -> 15.3 | I89: =SUM(I82:I88) -> 71.55 | J89: =SUM(J82:J88) -> 499.00 | L89: =SUM(L82:L88) -> 76.96
A101: 2 | B101: 1 | C101: Завтрак | D101: гор.блюдо | E101: каша гречневая рассыпчатая с луком , филе грудки , припущенное с овощами | F101: 260 | G101: 16.46 | H101: 20.0 | I101: 45.74 | J101: 431.0 | K101: 439 | L101: 69.03
D103: гор.напиток | E103: Чай с сахаром | F103: 200 | G103: 0.2 | H103: 0 | I103: 9.1 | J103: 36.0 | K103: 300 | L103: 2.96
D104: хлеб | E104: Хлеб пшеничный для детского питания | F104: 40 | G104: 3.00 | H104: 0.4 | I104: 22.0 | J104: 98.4 | L104: 4.97
D107: итого | F107: =SUM(F101:F106) -> 500 | G107: =SUM(G101:G106) -> 19.66 | H107: =SUM(H101:H106) -> 20.40 | I107: =SUM(I101:I106) -> 76.84 | J107: =SUM(J101:J106) -> 565.40 | L107: =SUM(L101:L106) -> 76.96
A119: 2 | B119: 2 | C119: Завтрак | D119: гор.блюдо | E119: Макаронные изделия с тертым сыром | F119: 160 | G119: 9.16 | H119: 13.6 | I119: 29.25 | J119: 282.7 | K119: 229 | L119: 45.46
D121: гор.напиток | E121: Какао с молоком | F121: 200 | G121: 3.6 | H121: 3.3 | I121: 13.7 | J121: 98 | K121: 306 | L121: 11.34
D122: хлеб | E122: Хлеб пшеничный для детского питания | F122: 30 | G122: 2.25 | H122: 0.3 | I122: 16.5 | J122: 73.8 | K122: 1 | L122: 3.82
D123: фрукты | E123: Свежее яблоко | F123: 110 | G123: 0.44 | H123: 0.44 | I123: 10.8 | J123: 51.7 | L123: 16.34
D126: итого | F126: =SUM(F119:F125) -> 500 | G126: =SUM(G119:G125) -> 15.5 | H126: =SUM(H119:H125) -> 17.6 | I126: =SUM(I119:I125) -> 70.3 | J126: =SUM(J119:J125) -> 506.2 | L126: =SUM(L119:L125) -> 76.96
A138: 2 | B138: 3 | C138: Завтрак | D138: закуска | E138: Винегрет овощной | F138: 70 | G138: 1.05 | H138: 1.75 | I138: 5.72 | J138: 46.7 | K138: 42 | L138: 9.42
D139: гор.блюдо | E139: Плов из говядины | F139: 200 | G139: 14.8 | H139: 16 | I139: 40.1 | J139: 372 | K139: 119 | L139: 57.74
D140: гор.напиток | E140: Чай с сахаром и молоком | F140: 200 | G140: 1.6 | H140: 1.5 | I140: 11.3 | J140: 62 | K140: 301 | L140: 5.98
D141: хлеб | E141: Хлеб пшеничный для детского питания | F141: 30 | G141: 2.25 | H141: 0.3 | I141: 16.5 | J141: 73.8 | K141: 1 | L141: 3.82
D145: итого | F145: =SUM(F138:F144) -> 500 | G145: =SUM(G138:G144) -> 19.7 | H145: =SUM(H138:H144) -> 19.6 | I145: =SUM(I138:I144) -> 73.6 | J145: =SUM(J138:J144) -> 554.5 | L145: =SUM(L138:L144) -> 76.96
A157: 2 | B157: 4 | C157: Завтрак | D157: гор.блюдо | E157: Гарнир овощной сложный с котлетой из говядины и курицы "Школьные" | F157: 300 | G157: 16.6 | H157: 16.4 | I157: 36.63 | J157: 369 | K157: 7.7 | L157: 68.01
D159: гор.напиток | E159: Чай витаминизированный | F159: 200 | G159: 0.2 | H159: 0 | I159: 10 | J159: 38 | K159: 274 | L159: 3.97
D160: хлеб | E160: Хлеб пшеничный для детского питания | F160: 40 | G160: 3.00 | H160: 0.4 | I160: 22.0 | J160: 98.4 | K160: 42 | L160: 4.98
D164: итого | F164: =SUM(F157:F163) -> 540 | G164: =SUM(G157:G163) -> 19.8 | H164: =SUM(H157:H163) -> 16.8 | I164: =SUM(I157:I163) -> 68.63 | J164: =SUM(J157:J163) -> 505.4 | L164: =SUM(L157:L163) -> 76.96
A176: 2 | B176: 5 | C176: Завтрак | D176: гор.блюдо | E176: Каша из смеси круп( гречневая, овсяная, пшенная) молочная вязкая | F176: 190 | G176: 8.25 | H176: 9.22 | I176: 34.7 | J176: 292 | K176: 197 | L176: 30.85
D178: гор.напиток | E178: Чай с сахаром | F178: 200 | G178: 0.2 | H178: 0 | I178: 9.1 | J178: 36 | K178: 300 | L178: 2.92
D179: хлеб | E179: Бутерброд с маслом и сыром | F179: 35 | G179: 5.0 | H179: 7.1 | I179: 14.5 | J179: 146 | K179: 2 | L179: 21.74
D180: сладкий | E180: Йогурт для детского питания | F180: 100 | G180: 3.2 | H180: 3 | I180: 9.2 | J180: 80 | L180: 21.45
D183: итого | F183: =SUM(F176:F182) -> 525 | G183: 16.65 | H183: 19.32 | I183: 67.5 | J183: 554.0 | K183: 499 | L183: 76.96
